bitfinex-derivatives/quotes_BTCF0:USTF0_20241003
["timestamp","ask_amount","ask_price","bid_price","bid_amount"]
[1727965361819,0.44,60464.0,60458.0,0.00248085]
[1727965362013,0.44,60464.0,60460.0,0.08271]
[1727965362215,0.3608,60463.0,60458.0,0.00248085]
[1727965362414,0.44,60459.0,60458.0,0.00248085]
[1727965362724,0.082724,60451.0,60422.0,0.00248274]
[1727965362912,0.44,60438.0,60426.0,0.0877]
[1727965363108,0.44,60438.0,60435.0,0.082745]
[1727965363529,0.3608,60436.0,60422.0,0.00248274]
[1727965363916,0.44,60431.0,60427.0,0.082756]
[1727965364221,0.3608,60428.0,60410.0,0.09893059]
[1727965364410,0.44,60417.0,60402.0,0.08279]
[1727965364610,0.44,60412.0,60400.0,0.082793]
[1727965364817,0.44,60412.0,60399.0,0.3608]
[1727965365026,0.44,60406.0,60399.0,0.3608]
[1727965365215,0.44,60401.0,60399.0,0.3608]
[1727965365519,0.44,60408.0,60399.0,0.3608]
[1727965365724,0.44,60403.0,60399.0,0.3608]
[1727965366022,0.082762,60424.0,60399.0,0.443594]
[1727965366023,0.44,60408.0,60399.0,0.443594]
[1727965366619,0.001,60412.0,60400.0,0.082792]
[1727965366927,0.001,60412.0,60399.0,0.3608]
[1727965367315,0.082781,60409.0,60401.0,0.082791]
[1727965367621,0.082781,60409.0,60399.0,0.3608]
[1727965367622,0.082784,60407.0,60400.0,0.082793]
[1727965367821,0.001,60412.0,60399.0,0.3608]
[1727965368215,0.441,60408.0,60399.0,0.3608]
[1727965368622,0.082801,60395.0,60386.0,0.00248422]
[1727965368823,0.44,60387.0,60386.0,0.00248422]
[1727965369121,0.44,60392.0,60386.0,0.00248422]
[1727965369312,0.44,60403.0,60386.0,0.00248422]
[1727965369511,1.5,60402.0,60394.0,0.082802]
[1727965369824,1.5,60402.0,60386.0,0.00248422]
[1727965369825,1.582791,60402.0,60395.0,0.0828]
[1727965370021,1.5,60402.0,60397.0,0.082797]
[1727965370320,0.44,60403.0,60394.0,0.082802]
[1727965370527,0.082801,60395.0,60386.0,0.00248422]
[1727965370726,0.44,60387.0,60386.0,0.00248422]
[1727965371026,0.8008,60387.0,60366.0,0.3608]
[1727965371224,0.44,60380.0,60366.0,0.3608]
[1727965371415,0.44,60386.0,60378.0,0.082823]
[1727965371817,0.3608,60387.0,60382.0,0.082817]
[1727965372120,0.3608,60387.0,60386.0,0.082813]
[1727965372329,0.001,60387.0,60386.0,0.082813]
[1727965372518,0.001,60387.0,60386.0,0.078813]
[1727965372721,0.44,60392.0,60381.0,0.3608]
[1727965373021,0.38597825,60387.0,60384.0,0.082815]
[1727965373324,0.46879025,60387.0,60366.0,0.3608]
[1727965373519,0.082814,60385.0,60368.0,0.082837]
[1727965373723,0.082814,60385.0,60379.0,0.082822]
[1727965373927,0.082814,60385.0,60368.0,0.082837]
[1727965373928,0.38597825,60387.0,60383.0,0.082815]
[1727965374115,0.38597825,60387.0,60384.0,0.082815]
[1727965374314,0.38597825,60387.0,60371.0,0.082833]
[1727965374524,0.012,60387.0,60386.0,0.082813]
[1727965374715,0.012,60387.0,60386.0,1.019613]
[1727965374920,0.082787,60405.0,60399.0,0.082795]
[1727965375116,0.8008,60400.0,60386.0,0.00248409]
[1727965375317,0.082797,60398.0,60394.0,0.082801]
[1727965375518,0.082797,60398.0,60386.0,0.00248409]
[1727965375519,0.883594,60400.0,60386.0,0.00248409]
[1727965375719,0.082797,60398.0,60386.0,0.00248409]
[1727965376025,0.44,60394.0,60393.0,0.082803]
[1727965376227,0.3608,60400.0,60395.0,0.0828]
[1727965376528,0.44,60399.0,60386.0,0.00248409]
[1727965376724,0.3608,60387.0,60386.0,0.00248409]
[1727965377115,0.443595,60400.0,60391.0,0.082805]
[1727965377429,0.443595,60400.0,60386.0,0.00248409]
[1727965377430,0.082807,60390.0,60386.0,0.00248409]
[1727965377726,0.082795,60399.0,60386.0,0.00348409]
[1727965377727,0.44,60387.0,60386.0,0.00348409]
[1727965378523,0.44,60387.0,60386.0,0.00248409]
[1727965378727,0.44,60394.0,60386.0,0.00248409]
[1727965379030,0.44,60394.0,60390.0,0.082807]
[1727965379232,0.44,60394.0,60393.0,0.082803]
[1727965379445,0.37204242,60400.0,60386.0,0.00348409]
[1727965379929,0.37204242,60400.0,60399.0,0.082795]
[1727965380125,0.167166,60421.0,60392.0,0.44]
[1727965380126,0.8008,60412.0,60392.0,0.44]
[1727965380430,0.47211819,60417.0,60386.0,0.00348409]
[1727965380431,0.082806,60391.0,60386.0,0.00348409]
[1727965380629,0.44,60394.0,60386.0,0.00348409]
[1727965380928,0.009,60394.0,60391.0,0.082805]
[1727965381124,0.009,60394.0,60372.0,0.443631]
[1727965381125,0.009,60394.0,60372.0,0.30428409]
[1727965381334,0.009,60394.0,60387.0,0.082811]
[1727965381530,0.009,60394.0,60373.0,0.08283]
[1727965381531,0.44,60394.0,60392.0,0.001]
[1727965381721,0.522801,60395.0,60392.0,0.001]
[1727965382029,0.014,60394.0,60391.0,0.001]
[1727965382422,0.014,60394.0,60393.0,0.082803]
[1727965383023,0.082771,60417.0,60411.0,0.082777]
[1727965383231,0.082773,60415.0,60406.0,0.082784]
[1727965383421,0.44,60413.0,60402.0,0.08279]
[1727965383621,0.44,60407.0,60402.0,0.08279]
[1727965383925,0.3608,60404.0,60392.0,0.001]
[1727965384123,0.082797,60398.0,60392.0,0.083804]
[1727965384322,0.522803,60393.0,60391.0,0.001]
[1727965384525,0.082804,60392.0,60391.0,0.001]
[1727965384937,0.082811,60388.0,60380.0,0.00248439]
[1727965385225,0.44,60386.0,60380.0,0.00248439]
[1727965385430,0.44,60381.0,60380.0,0.00248439]
[1727965385725,0.8008,60381.0,60363.0,0.082844]
[1727965385928,0.44,60372.0,60357.0,0.36328541]
[1727965386230,0.44,60370.0,60357.0,0.36328541]
[1727965386531,1.94,60370.0,60364.0,0.082842]
[1727965386725,1.5,60370.0,60369.0,0.082836]
[1727965386951,0.01100297,60380.0,60362.0,0.44]
[1727965387236,0.00248539,60383.0,60381.0,0.082818]
[1727965387427,0.00248539,60383.0,60376.0,0.082825]
[1727965387620,0.00248539,60383.0,60367.0,0.3608]
[1727965387824,0.00248539,60383.0,60382.0,0.082818]
[1727965388024,0.44,60402.0,60391.0,0.082806]
[1727965388221,0.44,60402.0,60385.0,0.3608]
[1727965388427,0.44,60396.0,60378.0,0.36328438]
[1727965388625,0.44,60390.0,60383.0,0.082817]
[1727965389125,0.44,60390.0,60378.0,0.36328438]
[1727965389126,0.082815,60385.0,60382.0,0.004]
[1727965389334,0.44,60390.0,60382.0,0.004]
[1727965389518,0.08281,60389.0,60386.0,0.082812]
[1727965389720,0.01115658,60397.0,60390.0,0.082807]
[1727965389922,0.3608,60401.0,60400.0,0.082793]
[1727965390135,0.82484,60408.0,60393.0,0.3608]
[1727965390436,0.082796,60398.0,60397.0,0.082796]
[1727965390628,0.082793,60401.0,60398.0,0.082796]
[1727965390831,0.082787,60405.0,60400.0,0.082792]
[1727965391129,0.82484,60408.0,60405.0,0.082786]
[1727965391436,0.82484,60408.0,60393.0,0.3608]
[1727965391437,1.26684,60408.0,60396.0,0.13129499]
[1727965391623,0.0828,60396.0,60393.0,0.40929599]
[1727965391940,0.44,60398.0,60392.0,0.082804]
[1727965391941,0.3608,60397.0,60392.0,0.04849599]
[1727965392123,0.3608,60397.0,60392.0,0.13129999]
[1727965392320,0.3608,60397.0,60396.0,0.082799]
[1727965392524,0.3608,60397.0,60396.0,0.13129499]
[1727965392726,0.3608,60397.0,60396.0,0.082799]
[1727965392932,0.3608,60397.0,60393.0,0.06508921]
[1727965393134,0.082803,60393.0,60391.0,0.06508921]
[1727965393329,0.082807,60390.0,60387.0,0.08136151]
[1727965393523,0.3608,60397.0,60393.0,0.082802]
[1727965393722,0.3608,60403.0,60400.0,0.082793]
[1727965393921,0.3608,60403.0,60396.0,0.04938495]
[1727965393922,0.3608,60403.0,60399.0,0.04937357]
[1727965394120,0.44,60400.0,60398.0,0.04937357]
[1727965394337,0.522795,60400.0,60398.0,0.06582829]
[1727965394529,0.44,60400.0,60398.0,0.06582829]
[1727965394726,0.3608,60403.0,60402.0,0.082791]
[1727965395031,0.00248423,60411.0,60401.0,0.06582829]
[1727965395230,0.003,60403.0,60402.0,0.20899934]
[1727965395535,0.00248423,60411.0,60402.0,0.12620834]
[1727965395723,0.00248423,60411.0,60410.0,0.08278]
[1727965396030,0.00248423,60411.0,60410.0,0.16512924]
[1727965396220,0.082748,60434.0,60425.0,0.082759]
[1727965396426,0.0110613,60432.0,60425.0,0.082759]
[1727965396621,1.8608,60426.0,60424.0,0.0493669]
[1727965396829,0.3608,60426.0,60425.0,0.082759]
[1727965397543,0.3608,60426.0,60422.0,0.06582253]
[1727965397544,0.3608,60426.0,60424.0,0.04930265]
[1727965397723,0.082759,60425.0,60422.0,0.06582253]
[1727965397923,0.49108688,60437.0,60434.0,0.082747]
[1727965398231,0.49108688,60437.0,60436.0,0.082744]
[1727965398428,0.49108688,60437.0,60429.0,0.082753]
[1727965398637,0.44,60431.0,60417.0,0.00248296]
[1727965398831,0.082747,60435.0,60419.0,0.082767]
[1727965399036,0.8008,60437.0,60417.0,0.00248296]
[1727965399426,0.3608,60437.0,60418.0,0.0858]
[1727965399731,0.3608,60437.0,60436.0,0.082744]
[1727965399931,0.3608,60440.0,60418.0,0.0858]
[1727965400128,0.44354,60440.0,60418.0,0.0858]
[1727965400328,0.3608,60440.0,60432.0,0.082748]
[1727965400524,0.3608,60440.0,60437.0,0.082743]
[1727965400830,0.01079596,60449.0,60444.0,0.082732]
[1727965401034,0.01079596,60449.0,60434.0,0.001]
[1727965401035,0.44,60448.0,60434.0,0.001]
[1727965401241,0.44,60448.0,60429.0,0.3608]
[1727965401427,0.08274,60439.0,60436.0,0.082744]
[1727965401627,0.44,60441.0,60418.0,0.0958]
[1727965401835,0.082742,60438.0,60435.0,0.082745]
[1727965402129,0.3608,60456.0,60437.0,0.36328187]
[1727965402330,0.3608,60456.0,60455.0,0.082718]
[1727965402537,0.3608,60463.0,60444.0,0.522733]
[1727965402736,0.3608,60475.0,60470.0,0.082697]
[1727965403337,0.3608,60475.0,60457.0,0.00248115]
[1727965403543,0.082696,60471.0,60457.0,0.00248115]
[1727965403728,0.3608,60475.0,60460.0,0.44]
[1727965403930,0.3608,60475.0,60465.0,0.082704]
[1727965404242,0.3608,60475.0,60467.0,0.44]
[1727965404448,0.3608,60475.0,60457.0,0.00248115]
[1727965404449,0.3608,60490.0,60473.0,0.44]
[1727965404737,0.01107285,60487.0,60473.0,0.44]
[1727965404937,0.3608,60490.0,60465.0,0.3608]
[1727965405142,0.01090616,60490.0,60483.0,0.08268]
[1727965405328,0.01090616,60490.0,60482.0,0.44]
[1727965405329,0.3608,60495.0,60486.0,0.082676]
[1727965405532,0.3608,60495.0,60477.0,0.3608]
[1727965405533,0.3608,60495.0,60481.0,0.082682]
[1727965405733,0.3608,60494.0,60491.0,0.44]
[1727965406038,0.00248089,60496.0,60491.0,0.44]
[1727965406230,0.00248089,60496.0,60481.0,0.3608]
[1727965406637,1.5,60495.0,60481.0,0.3608]
[1727965406941,0.082674,60488.0,60478.0,0.44248015]
[1727965407136,0.082673,60489.0,60480.0,0.082684]
[1727965407336,1.8608,60495.0,60478.0,0.00248015]
[1727965407645,1.8608,60495.0,60473.0,0.001]
[1727965407646,0.082681,60482.0,60473.0,0.001]
[1727965407950,0.44,60481.0,60457.0,0.36328115]
[1727965408137,0.082695,60472.0,60464.0,0.082705]
[1727965408336,0.44,60481.0,60457.0,0.36328115]
[1727965408537,0.3608,60485.0,60474.0,0.082692]
[1727965408843,0.082692,60475.0,60463.0,0.082707]
[1727965409047,0.44,60473.0,60457.0,0.36328115]
[1727965409345,0.3608,60462.0,60457.0,0.00248115]
[1727965409739,0.082711,60461.0,60457.0,0.00248115]
[1727965409939,0.3608,60462.0,60457.0,0.00248115]
[1727965410945,0.082713,60459.0,60457.0,0.00248115]
[1727965411139,0.3608,60462.0,60457.0,0.00248115]
[1727965411441,0.082714,60458.0,60457.0,0.00248115]
[1727965411633,0.082714,60458.0,60457.0,0.00348115]
[1727965411832,0.08271,60461.0,60457.0,0.00348115]
[1727965412045,1.5,60460.0,60457.0,0.00348115]
[1727965412544,0.082714,60458.0,60457.0,0.001]
[1727965412744,0.082722,60452.0,60442.0,0.082735]
[1727965412946,1.5,60460.0,60435.0,0.44]
[1727965413144,1.5,60460.0,60405.0,0.54874402]
[1727965413145,0.082739,60441.0,60433.0,0.082748]
[1727965413338,0.3608,60443.0,60424.0,0.44]
[1727965413538,0.3608,60443.0,60431.0,0.44]
[1727965413944,0.082738,60441.0,60435.0,0.082744]
[1727965414149,0.082742,60438.0,60428.0,0.082754]
[1727965414446,0.37189933,60443.0,60426.0,0.522757]
[1727965414640,0.082744,60437.0,60424.0,0.014]
[1727965414848,0.082758,60426.0,60424.0,0.014]
[1727965415044,0.082754,60429.0,60424.0,0.08276]
[1727965415246,0.082757,60427.0,60422.0,0.00248262]
[1727965415443,0.082762,60423.0,60422.0,0.00248262]
[1727965415644,0.3608,60430.0,60422.0,0.00248262]
[1727965415850,1.501,60437.0,60429.0,0.522754]
[1727965416049,0.3608,60436.0,60424.0,0.44]
[1727965416251,0.443544,60436.0,60431.0,0.082751]
[1727965416749,0.443544,60436.0,60427.0,0.082755]
[1727965416750,0.082749,60433.0,60427.0,0.082755]
[1727965416968,0.443544,60436.0,60422.0,0.36328262]
[1727965416969,0.3608,60436.0,60422.0,0.36328262]
[1727965417160,0.082761,60424.0,60422.0,0.00248262]
[1727965417344,0.443562,60423.0,60422.0,0.00248262]
[1727965417542,0.443562,60423.0,60410.0,0.3608]
[1727965417543,0.444563,60423.0,60410.0,0.3608]
[1727965417740,0.444563,60423.0,60409.0,0.08278]
[1727965417741,0.082764,60422.0,60409.0,0.08278]
[1727965418040,0.082764,60422.0,60398.0,0.3608]
[1727965418041,0.3608,60423.0,60413.0,0.44]
[1727965418350,0.082753,60430.0,60422.0,0.082763]
[1727965418552,0.082753,60430.0,60423.0,0.082761]
[1727965418745,0.3608,60434.0,60425.0,0.44]
[1727965418950,0.082752,60430.0,60424.0,0.08276]
[1727965419141,0.082737,60441.0,60419.0,0.44]
[1727965419142,0.3608,60439.0,60438.0,0.082741]
[1727965419347,0.3608,60439.0,60438.0,1.019101]
[1727965419545,0.3608,60439.0,60438.0,0.44]
[1727965419750,0.082742,60438.0,60433.0,0.522747]
[1727965419954,0.082742,60438.0,60433.0,0.082747]
[1727965420149,0.443541,60439.0,60421.0,0.44]
[1727965420349,0.443541,60439.0,60428.0,0.082755]
[1727965420350,0.08275,60432.0,60428.0,0.082755]
[1727965420656,0.082746,60435.0,60431.0,0.082751]
[1727965420858,0.082743,60437.0,60427.0,0.44]
[1727965421053,0.3608,60439.0,60433.0,0.001]
[1727965421254,0.082746,60435.0,60433.0,0.001]
[1727965421755,0.3608,60439.0,60433.0,0.001]
[1727965421954,0.082746,60435.0,60433.0,0.001]
[1727965422258,0.001,60432.0,60431.0,0.082751]
[1727965422654,0.001,60432.0,60428.0,0.083755]
[1727965422955,0.082754,60429.0,60428.0,0.001]
[1727965423350,0.001,60432.0,60428.0,1.09744]
[1727965423553,0.001,60432.0,60431.0,0.082751]
[1727965423958,0.3608,60452.0,60433.0,0.082748]
[1727965424146,0.3608,60452.0,60440.0,0.44]
[1727965424347,0.09351527,60454.0,60441.0,0.3608]
[1727965424548,0.01079427,60454.0,60453.0,0.522721]
[1727965424864,0.082697,60471.0,60453.0,0.522721]
[1727965424865,0.3608,60471.0,60453.0,0.522721]
[1727965425049,0.3608,60471.0,60451.0,0.3608]
[1727965425050,0.3608,60471.0,60455.0,0.44]
[1727965425251,0.0827,60469.0,60456.0,0.082715]
[1727965425455,0.44,60470.0,60452.0,0.082721]
[1727965425759,0.3608,60463.0,60451.0,0.3608]
[1727965425962,0.3608,60463.0,60446.0,0.44353]
[1727965426149,0.082715,60458.0,60446.0,0.3608]
[1727965426349,0.082715,60458.0,60447.0,0.082729]
[1727965426553,0.082715,60458.0,60451.0,0.082723]
[1727965426749,0.44,60470.0,60449.0,0.082726]
[1727965426967,0.082718,60455.0,60449.0,0.082726]
[1727965427262,0.082715,60458.0,60446.0,0.3608]
[1727965427464,0.082713,60460.0,60453.0,0.082719]
[1727965427763,0.082715,60458.0,60446.0,0.3608]
[1727965428059,0.54117937,60470.0,60446.0,0.3608]
[1727965428060,0.082698,60470.0,60467.0,0.0827]
[1727965428261,0.3608,60471.0,60459.0,0.44]
[1727965428457,0.3608,60471.0,60452.0,0.44]
[1727965428651,1.8608,60471.0,60452.0,0.44]
[1727965428851,0.3608,60471.0,60469.0,0.44]
[1727965429159,0.3608,60471.0,60446.0,0.3608]
[1727965429160,0.3608,60471.0,60463.0,0.082706]
[1727965429362,0.082701,60468.0,60467.0,0.001]
[1727965430264,0.3608,60471.0,60467.0,0.083701]
[1727965430460,0.3608,60471.0,60467.0,0.001]
[1727965431056,0.3608,60471.0,60470.0,0.082698]
[1727965431254,0.3608,60475.0,60468.0,0.93612]
[1727965431456,0.3608,60475.0,60474.0,0.522692]
[1727965431757,0.082691,60476.0,60471.0,0.082695]
[1727965431951,0.3608,60482.0,60465.0,0.3608]
[1727965432158,0.3608,60482.0,60462.0,0.44]
[1727965432159,0.3608,60474.0,60467.0,0.001]
[1727965432356,0.082697,60471.0,60467.0,0.083702]
[1727965432553,0.082697,60471.0,60467.0,0.082702]
[1727965432748,0.443492,60474.0,60469.0,0.082699]
[1727965432965,0.3608,60474.0,60462.0,0.44]
[1727965433167,0.3608,60474.0,60461.0,0.00248101]
[1727965433168,0.0827,60469.0,60461.0,0.00248101]
[1727965433467,0.082696,60472.0,60467.0,0.001]
[1727965433666,0.3719098,60474.0,60467.0,0.001]
[1727965433854,0.3719098,60474.0,60471.0,0.082696]
[1727965433855,1.5,60472.0,60471.0,0.082696]
[1727965434057,1.5,60472.0,60467.0,0.001]
[1727965434257,0.3719098,60474.0,60469.0,0.44]
[1727965434564,0.3719098,60474.0,60473.0,0.082693]
[1727965435065,0.3719098,60474.0,60469.0,0.441]
[1727965435066,0.62717877,60474.0,60469.0,0.441]
[1727965435360,0.14759466,60471.0,60470.0,0.082698]
[1727965435561,0.09128485,60471.0,60469.0,0.001]
[1727965435756,0.09128485,60470.0,60469.0,0.001]
[1727965435955,0.14764335,60470.0,60463.0,0.44]
[1727965436161,0.16398412,60473.0,60461.0,0.00248101]
[1727965436162,0.17174883,60469.0,60461.0,0.00248101]
[1727965436359,0.1312377,60472.0,60471.0,0.082696]
[1727965436560,0.04050619,60472.0,60470.0,0.001]
[1727965436766,0.13127565,60472.0,60471.0,0.082696]
[1727965437266,0.09127644,60477.0,60470.0,0.001]
[1727965437267,0.13127565,60477.0,60476.0,0.082689]
[1727965437461,0.13126846,60479.0,60476.0,0.44]
[1727965437659,0.13127104,60484.0,60478.0,0.44]
[1727965437856,0.13127104,60484.0,60483.0,0.52268]
[1727965437857,0.08268,60484.0,60483.0,0.52268]
[1727965438270,0.14764335,60490.0,60480.0,0.3608]
[1727965438471,0.443462,60496.0,60480.0,0.3608]
[1727965438472,0.082683,60481.0,60480.0,0.3608]
[1727965438960,0.082683,60481.0,60463.0,0.001]
[1727965438961,0.082692,60475.0,60474.0,0.082692]
[1727965439360,0.3608,60485.0,60481.0,0.082683]
[1727965439361,0.16398412,60482.0,60481.0,0.082683]
[1727965439572,0.14764272,60488.0,60481.0,0.082683]
[1727965439874,0.14764272,60490.0,60489.0,0.082672]
[1727965440076,0.14764272,60491.0,60490.0,0.08267]
[1727965440775,0.01117996,60493.0,60487.0,0.44]
[1727965441069,0.01117996,60493.0,60492.0,0.082667]
[1727965441458,0.01117996,60493.0,60489.0,0.3608]
[1727965441767,0.01117996,60493.0,60492.0,0.082667]
[1727965442275,0.00248063,60498.0,60492.0,0.082667]
[1727965442474,0.00248063,60498.0,60497.0,0.522661]
[1727965442768,0.3608,60513.0,60497.0,1.4008]
[1727965443065,0.3608,60513.0,60492.0,0.49592]
[1727965443066,0.3608,60513.0,60492.0,0.44]
[1727965443265,0.082665,60495.0,60491.0,0.3608]
[1727965443574,0.082669,60491.0,60490.0,0.001]
[1727965444071,0.082665,60494.0,60484.0,0.00247992]
[1727965444260,0.3608,60497.0,60492.0,0.44]
[1727965444570,0.3608,60497.0,60496.0,0.082662]
[1727965445067,0.3608,60513.0,60496.0,1.178542]
[1727965445271,0.3608,60513.0,60508.0,0.082646]
[1727965445475,0.082643,60510.0,60509.0,0.082644]
[1727965445773,0.00247987,60516.0,60515.0,0.082636]
[1727965446072,0.443421,60527.0,60525.0,0.082622]
[1727965446271,0.3608,60527.0,60526.0,0.44]
[1727965446571,0.16398412,60534.0,60526.0,0.8008]
[1727965446773,0.16398412,60534.0,60533.0,0.522611]
[1727965446990,0.3608,60544.0,60538.0,0.082604]
[1727965447170,0.3608,60544.0,60539.0,0.522603]
[1727965447861,0.082598,60543.0,60539.0,0.522603]
[1727965448271,0.16398412,60546.0,60539.0,0.44]
[1727965448472,0.16398412,60546.0,60545.0,0.522595]
[1727965449461,0.16398412,60546.0,60535.0,0.3608]
[1727965449660,0.16398412,60546.0,60533.0,0.01184618]
[1727965449661,0.08261,60534.0,60533.0,0.01084618]
[1727965450073,0.082613,60532.0,60521.0,0.3608]
[1727965450277,0.082626,60522.0,60521.0,0.3608]
[1727965450470,0.082616,60530.0,60521.0,0.3608]
[1727965450664,0.3608,60539.0,60529.0,0.082617]
[1727965450869,0.3608,60539.0,60533.0,0.001]
[1727965451070,0.082609,60535.0,60533.0,0.001]
[1727965451273,0.3608,60539.0,60533.0,0.083611]
[1727965451471,0.082609,60535.0,60533.0,0.001]
[1727965451677,0.37152933,60539.0,60533.0,0.001]
[1727965451878,0.08261,60534.0,60533.0,0.00076032]
[1727965452375,0.57821,60534.0,60533.0,0.00076032]
[1727965452574,0.082626,60522.0,60521.0,0.3608]
[1727965452979,0.3608,60525.0,60512.0,0.00247873]
[1727965453176,0.443439,60513.0,60512.0,0.00247873]
[1727965453374,0.082637,60515.0,60509.0,0.082643]
[1727965453574,0.3608,60520.0,60508.0,0.44]
[1727965453771,0.082624,60524.0,60521.0,0.001]
[1727965454170,0.082619,60528.0,60523.0,0.082624]
[1727965454487,0.0862,60529.0,60519.0,0.08263]
[1727965454865,0.082626,60523.0,60519.0,0.08263]
[1727965455074,0.082619,60528.0,60521.0,0.001]
[1727965455277,0.00247897,60539.0,60528.0,0.082618]
[1727965455467,0.00247897,60539.0,60535.0,0.522608]
[1727965455667,0.00247897,60539.0,60529.0,0.44]
[1727965455867,0.082607,60537.0,60529.0,0.44]
[1727965456074,0.01331925,60539.0,60521.0,0.001]
[1727965456075,0.3608,60535.0,60521.0,0.001]
[1727965456288,0.082626,60523.0,60521.0,0.001]
[1727965456581,0.082626,60522.0,60521.0,0.001]
[1727965457068,0.3608,60523.0,60522.0,0.082626]
[1727965457476,0.001,60529.0,60522.0,0.522626]
[1727965457674,1.583618,60529.0,60525.0,0.082622]
[1727965457879,1.5,60529.0,60522.0,0.44]
[1727965458074,1.5,60529.0,60528.0,0.082618]
[1727965458271,0.443399,60543.0,60529.0,0.082617]
[1727965458577,0.01328311,60539.0,60533.0,0.44]
[1727965458779,0.00247897,60539.0,60536.0,0.082607]
[1727965458984,0.00247897,60539.0,60528.0,0.44]
[1727965459280,0.082608,60536.0,60533.0,0.082611]
[1727965459484,0.00247897,60539.0,60528.0,0.44]
[1727965459681,0.082606,60538.0,60534.0,0.082609]
[1727965459983,0.082608,60536.0,60534.0,0.08261]
[1727965460169,0.00347897,60539.0,60534.0,0.082609]
[1727965460366,0.00347897,60539.0,60528.0,0.441]
[1727965460578,0.00347897,60539.0,60537.0,0.082605]
[1727965460770,0.082607,60537.0,60528.0,0.441]
[1727965461083,0.082614,60531.0,60522.0,0.44]
[1727965461385,0.082635,60516.0,60515.0,0.00247879]
[1727965461971,0.082635,60516.0,60500.0,0.44]
[1727965461972,0.939195,60516.0,60500.0,0.44]
[1727965462177,0.45459465,60516.0,60500.0,0.44]
[1727965462376,0.082642,60511.0,60506.0,0.082648]
[1727965462579,0.082643,60510.0,60502.0,0.082654]
[1727965462784,0.45459465,60516.0,60504.0,0.08265]
[1727965462979,0.45459465,60516.0,60496.0,0.00247958]
[1727965463181,0.3608,60523.0,60513.0,0.44]
[1727965463673,0.37195746,60523.0,60513.0,0.44]
[1727965463872,0.3608,60514.0,60508.0,0.082645]
[1727965464068,0.3608,60514.0,60507.0,0.44]
[1727965464380,0.3608,60514.0,60504.0,0.001]
[1727965464381,0.443439,60514.0,60504.0,0.001]
[1727965464581,0.082646,60508.0,60504.0,0.001]
[1727965464881,0.082644,60509.0,60505.0,0.08265]
[1727965465080,0.09122657,60508.0,60507.0,0.082647]
[1727965465269,0.04048339,60508.0,60504.0,0.001]
[1727965465475,0.23797061,60507.0,60505.0,0.082649]
[1727965465677,0.04048339,60506.0,60505.0,0.082649]
[1727965465871,0.09122611,60506.0,60502.0,0.44]
[1727965466078,0.082656,60501.0,60498.0,0.082659]
[1727965466271,0.04048339,60500.0,60496.0,0.44247958]
[1727965466573,0.04048339,60499.0,60498.0,0.082659]
[1727965466773,0.082661,60497.0,60496.0,0.44247958]
[1727965466973,0.25415096,60497.0,60496.0,0.00247958]
[1727965467184,0.3049003,60497.0,60496.0,0.00247958]
[1727965467689,0.17389373,60497.0,60496.0,0.00247958]
[1727965467987,0.30958066,60497.0,60496.0,0.00247958]
[1727965468186,0.30958066,60497.0,60469.0,0.082698]
[1727965468187,0.30958066,60497.0,60479.0,0.44]
[1727965468375,0.30958066,60497.0,60474.0,0.3608]
[1727965468376,0.13119729,60487.0,60482.0,0.082681]
[1727965468575,0.13119729,60485.0,60479.0,0.44]
[1727965468777,0.14759437,60486.0,60482.0,0.082681]
[1727965468981,0.49205226,60484.0,60473.0,0.44]
[1727965469183,0.49205226,60484.0,60467.0,0.082701]
[1727965469184,0.082699,60470.0,60467.0,0.082701]
[1727965469392,0.3608,60476.0,60465.0,0.00248072]
[1727965469393,0.04050551,60469.0,60465.0,0.00248072]
[1727965469686,0.23029737,60466.0,60465.0,0.00248072]
[1727965469873,0.33796703,60466.0,60465.0,0.00248072]
[1727965470079,0.17398291,60466.0,60465.0,0.00248072]
[1727965470278,0.32151644,60466.0,60465.0,0.00248072]
[1727965470475,0.17398291,60466.0,60465.0,0.00248072]
[1727965470981,0.082708,60463.0,60440.0,0.44]
[1727965471283,0.13116868,60451.0,60440.0,0.44]
[1727965471481,0.18068678,60461.0,60433.0,0.01215647]
[1727965471482,0.13116868,60453.0,60449.0,0.082726]
[1727965471686,0.14756476,60457.0,60452.0,0.44]
[1727965471880,0.04052077,60456.0,60452.0,0.44]
[1727965472076,0.16398412,60464.0,60460.0,0.082711]
[1727965472287,0.01,60466.0,60464.0,0.082706]
[1727965472490,0.3608,60473.0,60468.0,0.082699]
[1727965472682,0.082699,60469.0,60463.0,0.082706]
[1727965472983,0.082706,60464.0,60457.0,0.3608]
[1727965473178,0.0827,60469.0,60458.0,0.44]
[1727965473582,1.8608,60473.0,60464.0,0.082705]
[1727965473777,0.3748,60473.0,60468.0,0.001]
[1727965474179,0.457494,60473.0,60468.0,0.001]
[1727965474377,0.082699,60469.0,60468.0,0.001]
[1727965474987,0.46927397,60473.0,60468.0,0.001]
[1727965475190,0.37257997,60473.0,60458.0,0.44]
[1727965475381,0.3608,60459.0,60458.0,0.001]
[1727965475691,0.443513,60459.0,60458.0,0.001]
[1727965476078,0.45559099,60459.0,60458.0,0.001]
[1727965476277,0.37287799,60459.0,60454.0,0.00248124]
[1727965476481,0.45559099,60459.0,60454.0,0.00248124]
[1727965477078,0.38687799,60459.0,60458.0,0.523714]
[1727965477787,0.38687799,60459.0,60458.0,0.001]
[1727965478181,0.38687799,60459.0,60458.0,0.083714]